bitfinex/quotes_SOLUSD_20260302
["timestamp","ask_amount","ask_price","bid_price","bid_amount"]
[1772457132162,2.2359806,83.349,83.32,12.0019203]
[1772457132338,41.978507,83.376,83.31,0.1]
[1772457132339,2.2359806,83.339,83.31,0.1]
[1772457132528,2.2359806,83.329,83.311,12.00321686]
[1772457133055,2.2359806,83.329,83.31,0.1]
[1772457134227,2.30125967,83.319,83.291,12.0060919]
[1772457134638,2.30125967,83.319,83.292,2.13041359]
[1772457135042,2.30125967,83.319,83.293,12.00581081]
[1772457135355,2.30125967,83.329,83.294,2.13041359]
[1772457136760,9.2177259,83.34,83.311,2.13041359]
[1772457136927,2.30125967,83.347,83.311,2.13041359]
[1772457137132,2.30125967,83.347,83.303,0.28432314]
[1772457137133,11.99580253,83.363,83.331,2.13041359]
[1772457137342,2.20368445,83.362,83.331,2.13041359]
[1772457137943,2.20368445,83.372,83.341,2.1970689]
[1772457139154,2.20368445,83.372,83.35,9.2177259]
[1772457139555,2.20368445,83.381,83.351,2.1970689]
[1772457139850,2.20368445,83.387,83.351,2.1970689]
[1772457140053,2.20368445,83.379,83.351,2.1970689]
[1772457141256,2.20368445,83.378,83.343,2.1970689]
[1772457141460,2.20368445,83.359,83.323,2.1970689]
[1772457141656,2.20368445,83.359,83.325,2.1970689]
[1772457141851,2.20368445,83.359,83.33,9.2177259]
[1772457142260,2.20368445,83.367,83.331,2.48139204]
[1772457142572,2.20368445,83.367,83.34,2.1970689]
[1772457142870,2.20368445,83.367,83.341,2.1970689]
[1772457143062,2.20368445,83.367,83.34,9.2177259]
[1772457143265,2.20368445,83.367,83.341,14.195965]
[1772457143447,2.20368445,83.359,83.323,12.00138044]
[1772457143769,2.20368445,83.349,83.323,12.00138044]
[1772457144674,2.20368445,83.349,83.324,2.1970689]
[1772457144850,104.5,83.43,83.34,9.2177259]
[1772457144851,2.20368445,83.367,83.34,9.2177259]
[1772457145251,2.20368445,83.366,83.332,44.1977409]
[1772457145450,2.20368445,83.366,83.333,2.1970689]
[1772457146148,2.20368445,83.366,83.34,9.2177259]
[1772457146772,2.20368445,83.366,83.341,2.1970689]
[1772457147151,11.99400096,83.376,83.341,2.1970689]
[1772457147152,2.20368445,83.375,83.341,2.1970689]
[1772457147747,2.20368445,83.375,83.343,2.1970689]
[1772457148145,2.20368445,83.383,83.351,2.1970689]
[1772457148567,2.20368445,83.391,83.361,2.1970689]
[1772457148765,2.20368445,83.399,83.37,9.2177259]
[1772457149071,2.20368445,83.407,83.371,2.48139204]
[1772457149275,2.20368445,83.407,83.381,2.1970689]
[1772457149464,2.20368445,83.416,83.381,2.1970689]
[1772457150667,2.20368445,83.416,83.383,2.1970689]
[1772457151663,2.20368445,83.414,83.383,2.1970689]
[1772457152979,2.20368445,83.414,83.384,11.99270843]
[1772457153657,2.20368445,83.412,83.384,11.99270843]
[1772457154576,2.20368445,83.409,83.379,11.99332298]
[1772457157293,2.20368445,83.399,83.365,2.1970689]
[1772457158188,2.20368445,83.399,83.366,11.99529784]
[1772457158993,2.20368445,83.399,83.367,2.1970689]
[1772457159188,2.20368445,83.399,83.345,3.69383402]
[1772457159189,2.20368445,83.399,83.371,2.1970689]
[1772457159391,2.20368445,83.409,83.371,2.1970689]
[1772457159569,14.19279833,83.409,83.371,2.1970689]
[1772457159775,2.20368445,83.408,83.371,2.1970689]
[1772457159977,2.20368445,83.408,83.38,11.4147948]
[1772457160281,2.20368445,83.408,83.38,2.1970689]
[1772457160894,2.20368445,83.408,83.38,9.2177259]
[1772457161070,2.20368445,83.408,83.381,2.1970689]
[1772457161266,2.20368445,83.408,83.382,11.99299609]
[1772457161468,2.20368445,83.418,83.383,2.1970689]
[1772457161776,2.20368445,83.425,83.391,2.1970689]
[1772457162288,11.98677462,83.426,83.391,2.1970689]
[1772457162289,9.2177259,83.42,83.391,2.1970689]
[1772457162467,9.2177259,83.42,83.382,41.97548631]
[1772457162468,2.20368445,83.419,83.383,2.1970689]
[1772457162671,41.95345167,83.426,83.363,2.1970689]
[1772457162672,2.20368445,83.399,83.363,2.1970689]
[1772457163270,2.20368445,83.399,83.365,2.1970689]
[1772457166081,2.20368445,83.408,83.371,2.1970689]
[1772457167284,2.20368445,83.408,83.381,2.1970689]
[1772457167590,2.20368445,83.408,83.371,2.10906482]
[1772457169778,2.20368445,83.408,83.381,2.10906482]
[1772457172485,2.30959634,83.414,83.383,2.10906482]
[1772457174176,2.30959634,83.414,83.385,2.10906482]
[1772457175297,2.30959634,83.414,83.384,14.10177325]
[1772457175600,2.30959634,83.414,83.385,2.10906482]
[1772457176199,2.30959634,83.414,83.386,11.99242079]
[1772457176499,2.30959634,83.414,83.387,2.10906482]
[1772457178003,2.30959634,83.414,83.386,11.99242079]
[1772457178384,2.30959634,83.414,83.386,2.10906482]
[1772457180206,2.30959634,83.409,83.381,11.99313992]
[1772457180402,3.68383234,83.4,83.381,11.99313992]
[1772457180584,2.30959634,83.416,83.381,2.10906482]
[1772457180783,2.30959634,83.429,83.4,3.68383234]
[1772457180997,2.30959634,83.429,83.401,2.10906482]
[1772457181306,41.9437953,83.445,83.372,29.9857493]
[1772457181307,2.30959634,83.419,83.38,2.10906482]
[1772457181486,2.30959634,83.409,83.38,2.10906482]
[1772457181886,2.30959634,83.409,83.373,2.10906482]
[1772457183202,2.30959634,83.409,83.374,11.99414685]
[1772457183203,2.30959634,83.399,83.374,11.99414685]
[1772457183390,2.30959634,83.399,83.375,2.10906482]
[1772457183703,2.30959634,83.408,83.375,2.10906482]
[1772457183909,2.30959634,83.418,83.381,2.10906482]
[1772457185303,2.30959634,83.429,83.401,2.10906482]
[1772457185508,2.30959634,83.419,83.393,2.10906482]
[1772457185805,2.30959634,83.419,83.388,11.99211434]
[1772457186902,2.30959634,83.417,83.385,2.10906482]
[1772457187107,2.30959634,83.409,83.386,11.99242079]
[1772457189307,2.30959634,83.409,83.387,2.10906482]
[1772457191715,2.30959634,83.416,83.389,2.10906482]
[1772457193915,2.30959634,83.416,83.39,11.99184554]
[1772457195112,2.30959634,83.416,83.39,2.12341605]
[1772457195319,2.30959634,83.416,83.391,2.12341605]
[1772457195518,2.23592963,83.415,83.391,2.12341605]
[1772457195820,2.23592963,83.415,83.322,20.00751816]
[1772457195821,2.23592963,83.399,83.356,2.12341605]
[1772457196001,2.23592963,83.389,83.356,2.12341605]
[1772457196395,2.23592963,83.397,83.361,2.40773919]
[1772457196620,2.23592963,83.397,83.361,2.12341605]
[1772457197217,2.23592963,83.397,83.363,2.12341605]
[1772457197615,2.2671807,83.396,83.363,2.12341605]
[1772457197920,2.2671807,83.389,83.363,2.12341605]
[1772457198427,2.2671807,83.389,83.362,11.99587341]
[1772457199208,2.2671807,83.389,83.362,2.27818292]
[1772457202101,2.2671807,83.387,83.353,2.27818292]
[1772457202303,2.2671807,83.379,83.341,2.56250606]
[1772457204622,2.2671807,83.377,83.343,2.27818292]
[1772457205808,2.2671807,83.375,83.345,2.27818292]
[1772457208916,2.2671807,83.375,83.341,0.28432314]
[1772457208917,2.2671807,83.375,83.347,2.27818292]
[1772457210737,2.2671807,83.375,83.349,2.27818292]
[1772457211334,2.2671807,83.375,83.351,2.27818292]
[1772457211840,2.2671807,83.374,83.341,0.28432314]
[1772457212023,2.2671807,83.369,83.345,2.27818292]
[1772457212541,2.2671807,83.369,83.34,3.68409292]
[1772457212722,59.95499207,83.396,83.31,104.4]
[1772457212723,2.2671807,83.359,83.331,14.27851892]
[1772457213423,2.2671807,83.359,83.332,2.27818292]
[1772457214138,2.2671807,83.358,83.325,2.27818292]
[1772457214345,2.2671807,83.349,83.316,12.00249651]
[1772457214648,2.2671807,83.349,83.317,2.27818292]
[1772457217940,2.2671807,83.347,83.319,2.27818292]
[1772457219151,2.2671807,83.366,83.331,2.27818292]
[1772457219356,2.2671807,83.366,83.34,3.68409292]
[1772457219529,2.2671807,83.372,83.341,2.27818292]
[1772457219847,11.9925646,83.385,83.353,2.27818292]
[1772457220146,2.2671807,83.392,83.361,2.27818292]
[1772457220326,2.2671807,83.389,83.361,2.27818292]
[1772457222737,2.2671807,83.389,83.363,2.27818292]
[1772457224946,2.2671807,83.389,83.364,11.99558562]
[1772457226444,2.2671807,83.387,83.363,2.27818292]
[1772457229050,2.1387979,83.379,83.34,3.68409292]
[1772457229254,2.1387979,83.369,83.339,2.24847606]
[1772457230032,2.1387979,83.359,83.325,2.24847606]
[1772457230250,2.1387979,83.359,83.327,2.24847606]
[1772457231252,2.1387979,83.357,83.328,14.2492441]
[1772457231442,2.1387979,83.357,83.271,36.03]
[1772457231443,2.1387979,83.349,83.31,3.68409292]
[1772457231648,2.1387979,83.349,83.312,2.24847606]
[1772457232449,59.96210395,83.386,83.311,12.00321686]
[1772457232450,2.1387979,83.374,83.341,2.24847606]
[1772457232637,2.1387979,83.374,83.351,2.24847606]
[1772457232837,2.1387979,83.374,83.343,2.24847606]
[1772457233934,2.1387979,83.389,83.361,2.24847606]
[1772457235049,2.1387979,83.395,83.361,2.24847606]
[1772457235256,2.1387979,83.395,83.371,2.24847606]
[1772457236037,2.1387979,83.395,83.372,14.24291064]
[1772457236236,2.1387979,83.395,83.373,2.24847606]
[1772457236854,2.1387979,83.395,83.36,3.68409292]
[1772457237063,2.1387979,83.389,83.354,2.24847606]
[1772457241366,2.1387979,83.387,83.356,2.24847606]
[1772457243366,2.1387979,83.387,83.361,2.24847606]
[1772457243547,2.1387979,83.387,83.362,11.99587341]
[1772457244469,2.1387979,83.387,83.363,2.24847606]
[1772457244852,2.1387979,83.385,83.363,2.24847606]
[1772457246245,2.1387979,83.385,83.351,29.99352894]
[1772457246246,2.1387979,83.383,83.357,14.24495931]
[1772457246444,2.1387979,83.383,83.358,2.24847606]
[1772457246669,2.1387979,83.379,83.352,2.24847606]
[1772457247169,2.1387979,83.379,83.347,11.99799999]
[1772457247548,2.1387979,83.379,83.348,2.24847606]
[1772457248061,2.1387979,83.379,83.347,11.99799999]
[1772457248062,2.1387979,83.369,83.347,11.99799999]
[1772457248850,2.1387979,83.369,83.341,2.24847606]
[1772457249166,2.1387979,83.379,83.341,2.24847606]
[1772457249673,2.1387979,83.378,83.341,2.24847606]
[1772457250852,2.1387979,83.378,83.343,2.24847606]
[1772457252071,3.68734399,83.39,83.351,2.24847606]
[1772457252254,2.1387979,83.389,83.351,2.24847606]
[1772457252453,2.1387979,83.388,83.351,2.24847606]
[1772457254054,2.18049881,83.379,83.353,2.11361218]
[1772457254371,2.18049881,83.369,83.348,11.99785438]
[1772457254775,2.18049881,83.369,83.328,2.11361218]
[1772457255275,2.18049881,83.369,83.332,2.11361218]
[1772457255864,2.18049881,83.359,83.327,0.28432314]
[1772457256067,3.68734399,83.4,83.326,12.00105609]
[1772457256068,2.18049881,83.349,83.326,12.00105609]
[1772457256270,2.18049881,83.339,83.319,2.11361218]
[1772457256472,2.18049881,83.339,83.301,12.0046578]
[1772457256772,2.18049881,83.329,83.302,2.11361218]
[1772457258273,2.18049881,83.329,83.285,3.69383402]
[1772457258274,2.29582685,83.335,83.304,2.14686368]
[1772457258858,2.29582685,83.319,83.287,2.14686368]
[1772457259258,2.29582685,83.319,83.291,2.14686368]
[1772457259671,2.29582685,83.329,83.291,2.14686368]
[1772457260868,11.9997754,83.335,83.301,2.14686368]
[1772457261071,2.29582685,83.334,83.301,2.14686368]
[1772457261685,2.29582685,83.329,83.293,2.14686368]
[1772457262185,2.29582685,83.319,83.293,2.14686368]
[1772457262885,2.29582685,83.319,83.294,12.00566667]
[1772457263279,2.29582685,83.319,83.294,14.23730319]
[1772457263663,2.29582685,83.319,83.295,2.23163652]
[1772457264460,12.00081743,83.328,83.295,2.23163652]
[1772457264783,14.2913395,83.328,83.295,2.23163652]
[1772457265189,14.2913395,83.328,83.297,2.23163652]
[1772457265565,2.29052207,83.327,83.297,2.23163652]
[1772457267083,2.29052207,83.327,83.276,104.4]
[1772457267084,3.68734399,83.36,83.321,2.51595966]
[1772457267777,45.66887211,83.37,83.331,2.23163652]
[1772457267982,11.99472232,83.37,83.34,3.68734399]
[1772457268582,11.99472232,83.37,83.34,5.91898051]
[1772457268784,15.68206631,83.37,83.34,2.23163652]
[1772457268977,45.66887211,83.37,83.34,2.23163652]
[1772457269278,2.29052207,83.367,83.341,2.23163652]
[1772457269469,2.29052207,83.367,83.342,2.23163652]
[1772457269667,2.29052207,83.389,83.361,2.23163652]
[1772457271090,2.29052207,83.387,83.354,2.23163652]
[1772457271793,2.29052207,83.387,83.35,3.68734399]
[1772457272293,2.29052207,83.387,83.351,2.23163652]
[1772457273498,2.29052207,83.385,83.355,2.23163652]
[1772457273796,2.29052207,83.385,83.36,3.68734399]
[1772457273970,2.29052207,83.385,83.35,3.68734399]
[1772457274173,2.29052207,83.385,83.351,2.23163652]
[1772457274396,2.29052207,83.379,83.341,2.23163652]
[1772457274985,2.29052207,83.379,83.34,5.91898051]
[1772457275181,2.29052207,83.379,83.34,3.68734399]
[1772457275380,2.29052207,83.379,83.341,2.23163652]
[1772457275694,2.29052207,83.369,83.335,2.23163652]
[1772457275991,2.29052207,83.369,83.331,2.23163652]
[1772457277699,2.29052207,83.367,83.333,2.23163652]
[1772457278385,2.29052207,83.367,83.332,12.000192]
[1772457278386,2.29052207,83.367,83.341,2.23163652]
[1772457279397,2.29052207,83.367,83.331,2.23163652]
[1772457280095,2.29052207,83.365,83.331,2.23163652]
[1772457280300,2.29052207,83.359,83.331,2.23163652]
[1772457280989,2.29052207,83.359,83.321,2.23163652]
[1772457283904,2.29052207,83.357,83.323,2.23163652]
[1772457286091,2.29052207,83.355,83.323,2.23163652]
[1772457286289,2.29052207,83.349,83.317,2.23163652]
[1772457286594,41.98857909,83.356,83.321,2.23163652]
[1772457286595,2.29052207,83.355,83.321,2.23163652]
[1772457288193,11.99702473,83.354,83.323,2.15756554]
[1772457288394,2.10545852,83.353,83.323,2.15756554]
[1772457289508,41.98958657,83.354,83.323,2.15756554]
[1772457289509,2.10545852,83.349,83.323,2.15756554]
[1772457290410,11.99788837,83.348,83.323,2.15756554]
[1772457290705,29.9892121,83.364,83.314,30.00671601]
[1772457290706,2.10545852,83.358,83.325,2.15756554]
[1772457292393,2.10545852,83.356,83.325,2.15756554]
[1772457292694,2.10545852,83.356,83.327,2.15756554]
[1772457294214,11.99653581,83.358,83.313,2.15756554]
[1772457294215,2.10545852,83.349,83.313,2.15756554]
[1772457294394,2.10545852,83.339,83.313,2.15756554]
[1772457296417,2.10545852,83.337,83.305,2.15756554]
[1772457298214,2.10545852,83.337,83.304,12.004116]
[1772457298215,2.10545852,83.359,83.321,2.15756554]
[1772457298415,2.10545852,83.369,83.331,2.15756554]
[1772457299120,2.10545852,83.367,83.331,2.15756554]
[1772457299794,11.99501007,83.368,83.341,2.15756554]
[1772457300592,14.10046859,83.368,83.341,2.15756554]
[1772457301012,14.10046859,83.368,83.331,2.15756554]
[1772457301013,2.10545852,83.367,83.331,2.15756554]
[1772457301209,2.10545852,83.349,83.324,2.15756554]
[1772457302100,2.10545852,83.349,83.326,2.15756554]
[1772457304401,2.10545852,83.357,83.326,2.15756554]
[1772457304821,3.68734399,83.38,83.341,2.15756554]
[1772457305026,11.9934276,83.379,83.341,2.15756554]
[1772457305318,11.9934276,83.379,83.332,0.28432314]
[1772457305319,11.9934276,83.379,83.351,2.15756554]
[1772457307418,2.10545852,83.436,83.371,2.15756554]
[1772457307630,2.10545852,83.419,83.371,2.15756554]
[1772457307923,2.10545852,83.389,83.359,0.28432314]
[1772457308103,2.10545852,83.389,83.359,2.44188868]
[1772457308812,2.10545852,83.379,83.342,2.15756554]
[1772457309404,2.10545852,83.377,83.343,11.99860816]
[1772457309602,2.10545852,83.377,83.344,2.15756554]
[1772457310304,11.99357144,83.378,83.33,30.0011797]
[1772457310305,2.10545852,83.369,83.334,2.15756554]
[1772457310718,3.68734399,83.37,83.334,2.15756554]
[1772457310921,3.68734399,83.37,83.293,4.82477569]
[1772457310922,11.99357144,83.378,83.341,2.15756554]
[1772457311422,2.10545852,83.399,83.361,2.15756554]
[1772457311721,11.99083899,83.397,83.361,2.15756554]
[1772457312104,2.10545852,83.396,83.361,2.15756554]
[1772457312725,2.10545852,83.389,83.351,2.15756554]
[1772457313218,2.10545852,83.379,83.351,2.15756554]
[1772457313423,2.10545852,83.377,83.351,2.15756554]
[1772457314324,2.10545852,83.377,83.346,2.14793475]
[1772457314621,2.24661027,83.375,83.346,2.14793475]
[1772457314924,2.24661027,83.375,83.347,14.14596707]
[1772457315321,2.24661027,83.375,83.347,2.14793475]
[1772457315622,2.24661027,83.375,83.348,2.14793475]
[1772457316322,17.9256929,83.38,83.348,2.14793475]
[1772457318721,11.99159431,83.392,83.361,2.20164558]
[1772457320334,2.2407342,83.379,83.336,2.20164558]
[1772457320509,2.2407342,83.369,83.339,11.99905343]
[1772457320707,2.2407342,83.369,83.34,2.20164558]
[1772457320902,2.2407342,83.369,83.341,11.9988961]
[1772457321120,11.99428243,83.374,83.342,2.20164558]
[1772457324214,11.99428243,83.374,83.344,2.20164558]
[1772457324915,3.68577484,83.37,83.344,2.20164558]
[1772457326026,11.99486619,83.369,83.344,2.20164558]
[1772457326227,11.99486619,83.369,83.345,14.19996581]
[1772457327528,11.99486619,83.369,83.346,2.20164558]
[1772457328532,2.2407342,83.374,83.346,2.20164558]
[1772457329517,2.2407342,83.373,83.346,2.20164558]
[1772457329708,2.2407342,83.369,83.346,2.20164558]
[1772457330534,2.2407342,83.375,83.348,2.20164558]
[1772457331226,11.99414685,83.374,83.348,2.20164558]
[1772457331423,3.68577484,83.38,83.348,2.20164558]
[1772457331626,2.2407342,83.369,83.348,2.20164558]
[1772457332726,2.2407342,83.369,83.339,2.20164558]
[1772457333917,2.2407342,83.375,83.341,2.20164558]
[1772457334433,14.23195567,83.395,83.361,2.20164558]
[1772457334612,11.99122147,83.395,83.361,2.20164558]
[1772457335642,11.99055144,83.399,83.362,11.99587341]
[1772457335821,2.2407342,83.401,83.362,11.99587341]
[1772457335822,2.2407342,83.401,83.369,2.20164558]
[1772457336027,11.99040767,83.4,83.369,2.20164558]
[1772457336230,14.23114187,83.4,83.369,2.20164558]
[1772457336430,2.2407342,83.399,83.363,0.28432314]
[1772457336720,2.2407342,83.389,83.363,2.48596872]
[1772457337521,2.2407342,83.399,83.363,2.48596872]
[1772457337922,2.2407342,83.397,83.365,2.48596872]
[1772457339415,3.68577484,83.39,83.365,2.48596872]
[1772457339621,2.2407342,83.379,83.355,2.20164558]
[1772457340625,2.2407342,83.379,83.313,48.01136967]
[1772457340626,5.92650904,83.37,83.341,2.20164558]
[1772457340828,5.92650904,83.37,83.342,2.20164558]
[1772457341031,2.2407342,83.369,83.342,2.20164558]
[1772457342641,2.2407342,83.376,83.344,2.20164558]
[1772457343027,2.2407342,83.374,83.344,2.20164558]
[1772457344046,2.2407342,83.369,83.344,2.20164558]
[1772457344644,2.2407342,83.374,83.344,2.20164558]
[1772457345140,2.2407342,83.374,83.328,2.20164558]
[1772457345321,2.2407342,83.349,83.317,2.20164558]
[1772457345725,41.9800175,83.373,83.312,12.00306574]
[1772457345726,2.2407342,83.339,83.312,12.00306574]
[1772457345938,2.52505734,83.372,83.313,2.20164558]
[1772457346242,2.2407342,83.349,83.313,2.20164558]
[1772457347238,2.2407342,83.349,83.314,42.00974625]
[1772457347449,2.2407342,83.349,83.315,2.31246798]
[1772457348244,11.99788837,83.348,83.315,2.31246798]
[1772457348430,2.2407342,83.349,83.315,2.31246798]
[1772457348743,11.99737245,83.352,83.321,2.31246798]
[1772457348930,14.27887546,83.356,83.321,2.31246798]
[1772457349129,2.28208922,83.355,83.321,2.31246798]
[1772457349632,104.5,83.666,83.324,0.28432314]
[1772457349830,104.5,83.666,83.4,3.68577484]
[1772457349831,2.28208922,83.448,83.4,3.68577484]
[1772457350043,0.2,83.5,83.421,0.28432314]
[1772457350344,3.88577484,83.46,83.421,0.28432314]
[1772457350542,3.88577484,83.46,83.423,0.28432314]
[1772457350743,3.88577484,83.46,83.416,2.59679112]
[1772457350927,3.88577484,83.46,83.397,40.36874944]
[1772457350928,0.2,83.46,83.426,2.31246798]
[1772457351248,0.2,83.46,83.4,3.68577484]
[1772457351249,0.2,83.46,83.434,2.31246798]
[1772457351450,0.2,83.46,83.442,0.14216157]
[1772457351646,0.2,83.46,83.444,14.29655311]
[1772457353151,0.2,83.46,83.436,2.31246798]
[1772457353348,2.28208922,83.449,83.401,2.31246798]
[1772457353542,2.28208922,83.439,83.401,2.31246798]
[1772457353737,2.28208922,83.439,83.403,2.31246798]
[1772457353946,2.28208922,83.439,83.405,2.31246798]
[1772457354252,2.28208922,83.439,83.41,0.28432314]
[1772457356165,2.28208922,83.439,83.412,0.28432314]
[1772457356851,2.28208922,83.439,83.4,9.19705372]
[1772457356852,2.28208922,83.439,83.405,11.98956545]
[1772457357054,2.28208922,83.429,83.405,11.98956545]
[1772457357654,2.28208922,83.439,83.406,2.31246798]
[1772457358941,2.28208922,83.439,83.407,11.98940136]
[1772457359645,2.28208922,83.439,83.408,2.31246798]
[1772457361041,5.83808255,83.44,83.41,2.31246798]
[1772457361237,11.98354645,83.448,83.411,2.31246798]
[1772457361442,11.98276804,83.454,83.421,2.31246798]
[1772457361655,9.39705372,83.46,83.423,2.31246798]
[1772457361956,9.39705372,83.46,83.397,2.31246798]
[1772457361957,9.19705372,83.43,83.397,2.31246798]
[1772457362160,9.19705372,83.41,83.381,11.99313992]
[1772457362337,9.19705372,83.42,83.382,2.31246798]
[1772457362538,185.71993432,83.459,83.385,2.31246798]
[1772457362751,9.19705372,83.41,83.385,2.31246798]
[1772457362945,9.19705372,83.42,83.385,2.31246798]
[1772457363243,1.47695969,83.419,83.387,2.31246798]
[1772457363448,9.19705372,83.41,83.387,2.31246798]
[1772457363641,9.19705372,83.41,83.381,11.99312781]
[1772457363849,1.47698682,83.409,83.381,11.99312781]
[1772457364454,1.47698682,83.409,83.381,14.30559579]
[1772457366154,1.47698682,83.409,83.382,2.31246798]
[1772457366360,1.47704014,83.417,83.382,2.31246798]
[1772457367751,1.47766101,83.409,83.382,2.31246798]
[1772457368254,1.47766101,83.458,83.401,2.45462955]
[1772457368566,1.47766101,83.449,83.411,2.31246798]
[1772457368867,11.98207481,83.458,83.396,2.31246798]
[1772457368868,1.4779661,83.429,83.396,2.31246798]
[1772457369058,1.4779661,83.429,83.39,9.19705372]
[1772457370050,1.4779661,83.429,83.386,2.31246798]
[1772457370270,1.4779661,83.429,83.39,9.19705372]
[1772457370474,1.47826769,83.427,83.391,11.99170174]
[1772457370655,1.47826769,83.427,83.386,11.9923027]
[1772457371471,1.47826769,83.427,83.387,2.31246798]
[1772457371651,1.47886052,83.425,83.39,9.19705372]
[1772457372067,1.47886052,83.425,83.39,11.5095217]
[1772457372668,1.47886052,83.425,83.391,2.31246798]
[1772457374073,11.98695818,83.424,83.393,2.25269491]
[1772457374373,13.46668265,83.424,83.393,2.25269491]
[1772457375177,1.48000587,83.423,83.393,2.25269491]
[1772457375371,1.48000587,83.423,83.392,11.99155794]
[1772457376575,11.98724557,83.422,83.392,11.99155794]
[1772457376777,1.480559,83.421,83.392,11.99155794]
[1772457377254,1.480559,83.421,83.392,14.30179703]
[1772457377454,107.83867334,83.458,83.392,14.30179703]
[1772457377455,1.4808308,83.431,83.393,2.31023909]
[1772457377775,9.20753766,83.44,83.393,2.31023909]
[1772457377776,1.48109949,83.429,83.393,2.31023909]
[1772457377978,1.48109949,83.429,83.4,9.20753766]
[1772457378151,1.48109949,83.429,83.401,2.31023909]
[1772457378678,1.48136509,83.436,83.403,2.31023909]
[1772457379257,11.98128386,83.464,83.421,2.31023909]
[1772457379459,1e-08,83.46,83.441,2.59456223]
[1772457380477,13.46355888,83.459,83.423,2.31023909]
[1772457380673,1.48162764,83.458,83.424,14.29719727]
[1772457380871,1.48162764,83.458,83.425,2.31023909]
[1772457381072,1e-08,83.46,83.431,2.31023909]
[1772457381868,1e-08,83.46,83.433,2.31023909]
[1772457383668,1e-08,83.46,83.432,0.28432314]
[1772457383669,1e-08,83.46,83.435,2.31023909]
[1772457384579,1e-08,83.46,83.443,2.31023909]
[1772457385076,1e-08,83.46,83.453,2.31023909]
[1772457385660,1e-08,83.46,83.455,2.31023909]
[1772457385863,1e-08,83.46,83.44,2.31023909]
[1772457386462,1e-08,83.46,83.444,2.31023909]
[1772457387179,1e-08,83.46,83.451,2.31023909]
[1772457387385,1e-08,83.46,83.441,2.31023909]
[1772457387588,1e-08,83.46,83.451,2.31023909]
[1772457387768,1e-08,83.48,83.462,2.31023909]
[1772457387972,1e-08,83.48,83.464,2.31023909]
[1772457390271,1e-08,83.48,83.466,2.31023909]
[1772457390477,1e-08,83.48,83.471,2.31023909]
[1772457390679,1e-08,83.48,83.473,2.31023909]
[1772457391476,0.2,83.5,83.472,0.28432314]
[1772457391663,0.2,83.5,83.481,2.31023909]
[1772457392168,1.48455265,83.509,83.477,11.97930107]
[1772457392373,1.48455265,83.509,83.478,2.31023909]
[1772457392785,1.48477859,83.499,83.466,2.31023909]
[1772457393576,1.48477859,83.499,83.471,2.31023909]
[1772457394173,1.48477859,83.499,83.472,11.98006517]
[1772457394691,1.48477859,83.499,83.473,2.31023909]
[1772457396186,1.48477859,83.499,83.474,11.97977813]
[1772457396584,1.48477859,83.499,83.474,14.29001722]
[1772457396988,0.98477859,83.499,83.474,14.29001722]
[1772457397582,11.97499841,83.508,83.475,2.31023909]
[1772457398871,42.18593814,83.529,83.476,11.97949111]
[1772457399068,0.98608075,83.509,83.476,11.97949111]
[1772457399268,0.98608075,83.509,83.476,14.2897302]
[1772457399875,0.98608075,83.509,83.477,2.31023909]
[1772457402692,0.2,83.53,83.481,2.31023909]
[1772457402693,0.98690353,83.527,83.481,2.31023909]
[1772457402885,0.98690353,83.499,83.467,2.31023909]
[1772457403604,0.98690353,83.509,83.471,2.31023909]
[1772457404095,9.20753766,83.5,83.471,2.31023909]
[1772457405097,11.97395779,83.515,83.481,2.31023909]
[1772457405470,0.98730607,83.514,83.481,2.31023909]
[1772457405786,0.98750388,83.509,83.481,2.31023909]
[1772457407491,9.20753766,83.52,83.483,2.28066616]
[1772457407992,0.98808377,83.519,83.483,2.28066616]
[1772457408387,0.98808377,83.519,83.49,9.20753766]
[1772457408578,0.98808377,83.519,83.491,2.28066616]
[1772457408777,0.2,83.53,83.493,2.28066616]
[1772457409000,0.2,83.53,83.492,0.28432314]
[1772457409001,9.40753766,83.53,83.501,2.28066616]
[1772457409173,0.98827264,83.528,83.501,2.28066616]
[1772457409578,1.02469328,83.545,83.513,2.28066616]
[1772457409778,1.02469328,83.545,83.512,0.28432314]
[1772457409779,0.98845935,83.569,83.531,2.5649893]
[1772457409992,11.9661597,83.569,83.531,2.5649893]
[1772457410185,0.98845935,83.559,83.531,2.28066616]
[1772457410401,0.98845935,83.559,83.524,2.28066616]
[1772457411297,0.98864391,83.569,83.531,2.28066616]
[1772457411497,1e-08,83.57,83.551,2.28066616]
[1772457411684,1e-08,83.57,83.561,2.28066616]
[1772457411895,0.2,83.6,83.572,2.28066616]
[1772457412103,0.2,83.6,83.574,2.28066616]
[1772457412598,0.98882635,83.598,83.564,2.28066616]
[1772457413709,9.40753766,83.6,83.566,2.28066616]
[1772457413899,0.2,83.6,83.575,2.28066616]
[1772457415200,0.2,83.6,83.581,2.28066616]
[1772457415685,0.2,83.6,83.583,2.28066616]
[1772457415881,0.2,83.61,83.585,2.28066616]
[1772457416113,10.39707305,83.61,83.585,2.28066616]
[1772457416289,9.40753766,83.61,83.585,2.28066616]
[1772457416898,0.2,83.61,83.585,2.28066616]
[1772457418242,0.98987782,83.635,83.587,2.5649893]